bitfinex-derivatives/quotes_SOLF0:USTF0_20250105
["timestamp","ask_amount","ask_price","bid_price","bid_amount"]
[1736052164802,7.07142214,218.45,218.38,7.07142214]
[1736052165204,9.36082214,218.45,218.4,2.2899]
[1736052166207,7.07142214,218.45,218.41,2.2898]
[1736052173313,2.2893,218.46,218.41,2.2898]
[1736052173607,7.07142214,218.44,218.41,2.2898]
[1736052175108,1.3736,218.49,218.41,2.2898]
[1736052175307,7.07142214,218.47,218.4,7.07142214]
[1736052175511,4.8691,218.48,218.4,7.07142214]
[1736052175701,7.07142214,218.47,218.4,7.07142214]
[1736052176410,7.07142214,218.47,218.43,2.2896]
[1736052177404,7.07142214,218.47,218.44,2.2894]
[1736052177902,11.94042214,218.49,218.44,2.2894]
[1736052179210,4.869,218.49,218.44,2.2894]
[1736052179411,7.07142214,218.48,218.44,2.2894]
[1736052187223,2.58,218.5,218.44,7.07142214]
[1736052187420,9.65142214,218.5,218.44,7.07142214]
[1736052187925,7.07142214,218.5,218.42,7.07142214]
[1736052189424,7.07142214,218.5,218.45,2.2893]
[1736052189622,2.2888,218.51,218.45,2.2893]
[1736052189825,7.07142214,218.49,218.45,2.2893]
[1736052193025,2.2889,218.5,218.45,2.2893]
[1736052193226,7.07142214,218.49,218.45,2.2893]
[1736052215154,7.07142214,218.47,218.4,25.28187161]
[1736052215453,7.07142214,218.47,218.4,32.35329375]
[1736052215751,7.07142214,218.47,218.4,36.47322446]
[1736052216145,7.07142214,218.47,218.4,29.40180232]
[1736052216446,7.07142214,218.47,218.43,2.2896]
[1736052216945,9.36052214,218.49,218.43,2.2896]
[1736052219255,9.36052214,218.49,218.41,7.07142214]
[1736052219454,9.36052214,218.49,218.44,2.2894]
[1736052220449,2.2888,218.51,218.46,2.2893]
[1736052220650,7.07142214,218.51,218.46,2.2893]
[1736052222649,7.07142214,218.49,218.46,2.2893]
[1736052224452,7.07142214,218.49,218.42,7.07142214]
[1736052224654,7.07142214,218.49,218.47,2.2892]
[1736052225249,9.36022214,218.51,218.47,2.2892]
[1736052225555,2.58,218.53,218.49,2.289]
[1736052225556,9.36002214,218.53,218.49,2.289]
[1736052226353,9.36002214,218.53,218.47,2.2891]
[1736052226753,7.07142214,218.51,218.47,2.2891]
[1736052232853,7.07142214,218.51,218.44,9.65142214]
[1736052233061,28.77906071,218.57,218.5,7.07142214]
[1736052233258,35.85048285,218.57,218.5,7.07142214]
[1736052234558,7.07142214,218.55,218.48,7.07142214]
[1736052234950,7.07142214,218.55,218.51,2.2887]
[1736052235156,7.07142214,218.55,218.48,7.07142214]
[1736052235459,7.07142214,218.53,218.46,9.65142214]
[1736052236459,2.2886,218.52,218.46,11.94062214]
[1736052238256,2.2886,218.52,218.46,9.65142214]
[1736052238463,2.2886,218.52,218.47,2.2891]
[1736052240864,2.2886,218.52,218.46,7.07142214]
[1736052241067,2.2888,218.51,218.45,2.2893]
[1736052241866,2.2888,218.51,218.45,9.36072214]
[1736052243165,2.2888,218.51,218.46,2.2892]
[1736052244362,2.58,218.54,218.45,7.07142214]
[1736052244566,9.36002214,218.53,218.47,2.2892]
[1736052247464,9.36002214,218.53,218.48,2.2891]
[1736052247971,2.2886,218.53,218.48,2.2891]
[1736052253274,2.58,218.55,218.51,2.2887]
[1736052253470,33.56238285,218.57,218.49,7.07142214]
[1736052253868,35.85058285,218.57,218.51,2.2887]
[1736052254171,35.85058285,218.57,218.51,9.36012214]
[1736052254471,35.85058285,218.57,218.51,7.07142214]
[1736052254673,33.56238285,218.57,218.51,7.07142214]
[1736052254873,2.2883,218.56,218.51,7.07142214]
[1736052255072,33.56238285,218.57,218.51,7.07142214]
[1736052255270,2.2884,218.54,218.49,7.07142214]
[1736052256775,33.56238285,218.57,218.49,7.07142214]
[1736052256776,2.2885,218.53,218.49,7.07142214]
[1736052259974,2.2885,218.53,218.48,2.2891]
[1736052260770,7.07142214,218.55,218.47,7.07142214]
[1736052260970,2.2887,218.52,218.47,9.36062214]
[1736052263278,7.07142214,218.54,218.47,7.07142214]
[1736052263477,2.2888,218.51,218.47,7.07142214]
[1736052265984,2.2888,218.51,218.45,9.36072214]
[1736052266983,2.58,218.53,218.45,9.36072214]
[1736052266984,2.2889,218.5,218.45,9.36072214]
[1736052268380,2.2889,218.5,218.47,7.07142214]
[1736052269381,2.2887,218.51,218.47,7.07142214]
[1736052272687,2.2887,218.51,218.47,9.36062214]
[1736052273189,2.2887,218.51,218.47,7.07142214]
[1736052274089,2.2887,218.51,218.46,2.2893]
[1736052274794,2.2889,218.5,218.46,2.2893]
[1736052275689,2.2889,218.5,218.45,7.07142214]
[1736052275887,7.07142214,218.5,218.43,8.55552214]
[1736052276096,7.07142214,218.46,218.4,13.39189004]
[1736052276486,2.2895,218.44,218.4,7.07142214]
[1736052278089,9.36092214,218.44,218.39,2.29]
[1736052284992,9.36092214,218.44,218.38,7.07142214]
[1736052285197,9.36092214,218.44,218.38,9.36152214]
[1736052287297,2.58,218.48,218.41,2.2898]
[1736052287600,9.65142214,218.48,218.4,7.07142214]
[1736052288501,2.2892,218.47,218.42,2.2897]
[1736052288802,2.2892,218.47,218.4,7.07142214]
[1736052289503,2.2892,218.47,218.41,2.2898]
[1736052289804,7.07142214,218.46,218.41,2.2898]
[1736052290102,7.07142214,218.46,218.4,7.07142214]
[1736052290304,2.2894,218.45,218.4,7.07142214]
[1736052290505,7.07142214,218.41,218.34,5.4498]
[1736052290805,7.07142214,218.43,218.37,7.07142214]
[1736052291009,9.36112214,218.43,218.37,9.36152214]
[1736052291806,9.36112214,218.43,218.38,2.2901]
[1736052293105,2.2897,218.43,218.38,2.2901]
[1736052299612,9.36092214,218.45,218.39,9.36142214]
[1736052300206,2.2895,218.45,218.39,9.36142214]
[1736052300710,9.65142214,218.47,218.39,9.36142214]
[1736052300912,2.2895,218.44,218.39,9.36142214]
[1736052304212,9.36082214,218.45,218.39,9.36142214]
[1736052304412,7.07142214,218.45,218.39,9.36142214]
[1736052305412,2.58,218.47,218.39,9.36142214]
[1736052305413,2.2895,218.44,218.39,9.36142214]
[1736052307116,2.2896,218.43,218.37,9.36152214]
[1736052307815,2.2897,218.42,218.37,9.36152214]
[1736052308816,2.2897,218.42,218.37,2.2901]
[1736052309015,2.2897,218.42,218.37,9.36152214]
[1736052309318,2.2897,218.42,218.37,2.2901]
[1736052309618,2.2897,218.42,218.37,9.36152214]
[1736052310418,2.2896,218.43,218.38,2.2901]
[1736052311617,2.2897,218.42,218.37,9.36162214]
[1736052312821,2.2897,218.42,218.37,2.2902]
[1736052315121,9.36122214,218.41,218.36,2.2903]
[1736052315319,7.07142214,218.41,218.34,1.3767]
[1736052316522,2.56,218.42,218.35,7.07142214]
[1736052316715,10.85524869,218.5,218.39,7.07142214]
[1736052316716,2.56,218.44,218.39,7.07142214]
[1736052316915,9.63142214,218.45,218.39,7.07142214]
[1736052317413,2.2896,218.43,218.39,7.07142214]
[1736052317616,9.63142214,218.45,218.39,7.07142214]
[1736052318423,2.58,218.48,218.41,7.07142214]
[1736052318615,7.07142214,218.5,218.43,7.07142214]
[1736052318819,2.2892,218.47,218.42,7.07142214]
[1736052319020,2.2892,218.47,218.42,9.36112214]
[1736052320323,7.07142214,218.48,218.43,2.2896]
[1736052321822,2.289,218.49,218.44,2.2895]
[1736052322427,2.56,218.52,218.44,9.36092214]
[1736052322616,7.07142214,218.51,218.44,9.36092214]
[1736052323626,2.2889,218.5,218.44,9.36092214]
[1736052324928,2.289,218.49,218.44,9.36092214]
[1736052325426,9.36042214,218.49,218.44,9.36092214]
[1736052325832,9.36042214,218.49,218.44,2.2895]
[1736052328127,2.289,218.49,218.44,2.2895]
[1736052328333,9.36042214,218.49,218.44,2.2895]
[1736052354655,9.36042214,218.49,218.43,2.2896]
[1736052354656,2.2891,218.48,218.43,2.2896]
[1736052354854,7.07142214,218.44,218.38,27.84187161]
[1736052355753,9.36092214,218.44,218.39,2.2899]
[1736052356750,2.2896,218.43,218.37,2.2901]
[1736052357052,7.07142214,218.42,218.37,2.2901]
[1736052357455,2.2898,218.41,218.35,9.36182214]
[1736052357753,7.07142214,218.4,218.35,9.36182214]
[1736052358251,9.36132214,218.4,218.35,2.2904]
[1736052358958,2.29,218.39,218.34,1.3698]
[1736052359156,2.29,218.39,218.33,9.36202214]
[1736052359754,2.29,218.39,218.33,2.2906]
[1736052360860,7.07142214,218.4,218.32,7.07142214]
[1736052360861,2.2901,218.38,218.32,7.07142214]
[1736052362466,2.2901,218.38,218.32,9.36212214]
[1736052363855,2.2898,218.41,218.36,9.36172214]
[1736052364066,2.56,218.43,218.38,7.07142214]
[1736052364269,7.07142214,218.44,218.38,7.07142214]
[1736052364863,2.56,218.46,218.38,7.07142214]
[1736052365063,7.07142214,218.45,218.38,7.07142214]
[1736052365465,2.2895,218.45,218.38,7.07142214]
[1736052366567,2.2895,218.45,218.4,2.2899]
[1736052368367,2.2895,218.45,218.4,9.36132214]
[1736052370270,9.36072214,218.46,218.41,2.2898]
[1736052370471,2.2893,218.46,218.41,2.2898]
[1736052372073,2.2894,218.45,218.4,7.07142214]
[1736052375776,2.2894,218.45,218.4,9.36132214]
[1736052381076,2.8233,218.52,218.42,7.07142214]
[1736052381283,9.36042214,218.49,218.43,2.2895]
[1736052381678,7.07142214,218.47,218.43,2.2895]
[1736052390986,7.07142214,218.45,218.41,2.2897]
[1736052392387,9.36082214,218.45,218.41,2.2897]
[1736052394495,2.2894,218.45,218.41,2.2897]
[1736052394683,9.36082214,218.45,218.4,2.2899]
[1736052395996,2.2894,218.45,218.4,2.2899]
[1736052396293,9.36082214,218.45,218.4,2.2899]
[1736052399200,7.07142214,218.45,218.38,7.07142214]
[1736052399398,2.2895,218.44,218.39,2.29]
[1736052400299,7.07142214,218.41,218.24,189.68432157]
[1736052400494,7.07142214,218.41,218.33,32.35329375]
[1736052401095,7.07142214,218.41,218.33,7.07142214]
[1736052401293,7.07142214,218.39,218.33,2.2905]
[1736052402093,9.36152214,218.39,218.34,2.2905]
[1736052409508,2.2899,218.4,218.35,2.2904]
[1736052410809,1.4598,218.44,218.36,7.07142214]
[1736052411104,1.4457,218.45,218.4,7.07142214]
[1736052411309,7.07142214,218.46,218.4,7.07142214]
[1736052412108,9.36072214,218.46,218.41,2.2898]
[1736052413610,7.07142214,218.46,218.41,2.2898]
[1736052415108,9.36072214,218.46,218.41,2.2898]
[1736052419816,2.2894,218.45,218.4,7.07142214]
[1736052420407,2.2895,218.44,218.38,7.07142214]
[1736052420612,7.07142214,218.44,218.36,8.47892214]
[1736052422513,2.2897,218.42,218.37,2.2902]
[1736052424609,2.2896,218.43,218.38,2.2901]
[1736052428423,2.2896,218.43,218.38,9.36152214]
[1736052429624,9.63142214,218.46,218.38,7.07142214]
[1736052429824,9.63142214,218.46,218.39,2.29]
[1736052429825,2.2895,218.45,218.39,2.29]
[1736052430820,9.63142214,218.46,218.39,2.29]
[1736052431029,2.2895,218.44,218.39,2.29]
[1736052431526,26.50375364,218.47,218.43,2.2896]
[1736052431724,26.50375364,218.47,218.42,7.07142214]
[1736052431917,9.63142214,218.5,218.42,7.07142214]
[1736052432522,2.289,218.49,218.44,2.2895]
[1736052433331,2.289,218.49,218.42,9.36102214]
[1736052433531,2.289,218.49,218.42,7.07142214]
[1736052434432,2.289,218.49,218.43,2.2896]
[1736052437140,7.07142214,218.48,218.42,9.36112214]
[1736052438438,9.36052214,218.48,218.42,9.36112214]
[1736052438737,7.07142214,218.48,218.4,2.56]
[1736052438932,9.36092214,218.44,218.39,2.29]
[1736052440340,2.2895,218.44,218.39,2.29]
[1736052440632,1.4205,218.5,218.4,7.07142214]
[1736052440837,7.07142214,218.47,218.4,7.07142214]
[1736052441239,7.07142214,218.47,218.42,7.07142214]
[1736052442432,9.36052214,218.49,218.42,7.07142214]
[1736052443434,9.36052214,218.49,218.43,2.2895]
[1736052445137,26.49723666,218.53,218.44,7.07142214]
[1736052445440,36.1286588,218.53,218.47,2.2892]
[1736052446032,28.78583666,218.53,218.48,2.289]
[1736052446234,35.8572588,218.53,218.48,2.289]
[1736052446532,26.49723666,218.53,218.48,2.289]
[1736052448143,28.78583666,218.53,218.48,2.289]
[1736052449242,2.2889,218.51,218.45,9.36072214]
[1736052450238,28.78583666,218.53,218.46,2.2892]
[1736052450433,35.8572588,218.53,218.46,2.2892]
[1736052451046,2.2886,218.52,218.47,2.2892]
[1736052452845,33.5686588,218.53,218.45,7.07142214]
[1736052453045,2.2889,218.5,218.45,9.36072214]
[1736052455447,26.49723666,218.53,218.37,28.12877161]
[1736052455641,2.2893,218.47,218.4,9.36122214]
[1736052455841,2.2893,218.47,218.4,7.07142214]
[1736052456442,2.2893,218.47,218.42,7.07142214]
[1736052458142,2.2893,218.47,218.42,9.36112214]
[1736052460547,9.36052214,218.48,218.42,9.36112214]
[1736052461049,9.36052214,218.48,218.43,2.2896]
[1736052461447,2.2891,218.48,218.43,2.2896]
[1736052461646,2.56,218.51,218.44,7.07142214]
[1736052461947,2.56,218.51,218.46,7.07142214]
[1736052463451,2.2887,218.52,218.47,2.2891]
[1736052463654,26.49723666,218.53,218.46,7.07142214]
[1736052463947,26.49723666,218.53,218.43,2.56]
[1736052463948,2.56,218.55,218.48,7.07142214]
[1736052464152,4.8483,218.55,218.49,2.2889]
[1736052464949,2.2883,218.55,218.49,2.2889]
[1736052469051,7.07142214,218.56,218.49,2.2889]
[1736052469052,2.2884,218.54,218.5,7.07142214]
[1736052473756,7.07142214,218.56,218.48,7.07142214]
[1736052473959,2.2887,218.52,218.48,7.07142214]
[1736052474457,2.2886,218.53,218.48,7.07142214]
[1736052474654,2.2886,218.53,218.48,9.36042214]
[1736052475759,7.07142214,218.56,218.48,7.07142214]
[1736052475961,2.2886,218.52,218.48,7.07142214]
[1736052483565,7.07142214,218.56,218.48,7.07142214]
[1736052483764,2.2886,218.53,218.48,9.36042214]
[1736052484061,2.56,218.57,218.5,7.07142214]
[1736052484459,2.2884,218.55,218.52,7.07142214]
[1736052491669,2.56,218.59,218.54,7.07142214]
[1736052492564,2.2881,218.58,218.54,7.07142214]
[1736052493566,2.2879,218.6,218.56,7.07142214]
[1736052494565,2.2879,218.59,218.56,7.07142214]
[1736052494864,2.56,218.63,218.58,7.07142214]
[1736052495871,2.2876,218.63,218.58,7.07142214]
[1736052496065,7.07142214,218.65,218.58,7.07142214]
[1736052496265,7.07142214,218.66,218.6,7.07142214]
[1736052497567,2.2875,218.63,218.6,7.07142214]
[1736052498873,2.2876,218.62,218.58,7.07142214]
[1736052503274,7.07142214,218.64,218.58,7.07142214]
[1736052503578,2.2879,218.59,218.56,7.07142214]
[1736052511484,2.288,218.58,218.54,7.07142214]
[1736052511681,7.07142214,218.62,218.52,2.2886]
[1736052511976,7.07142214,218.6,218.52,7.07142214]
[1736052512282,7.07142214,218.6,218.51,1.3693]
[1736052512283,2.2885,218.54,218.51,1.3693]
[1736052512678,7.07142214,218.56,218.51,1.3693]
[1736052512679,2.2886,218.53,218.51,1.3693]
[1736052513083,7.07142214,218.56,218.51,1.3693]
[1736052513285,7.07142214,218.56,218.47,2.8223]
[1736052513477,7.07142214,218.56,218.48,7.07142214]
[1736052514583,2.2884,218.55,218.48,9.36042214]
[1736052515380,9.35962214,218.56,218.5,9.36022214]
[1736052515580,2.2882,218.56,218.5,9.36022214]
[1736052517282,7.07142214,218.58,218.5,7.07142214]
[1736052517283,2.2883,218.55,218.5,7.07142214]
[1736052518888,7.07142214,218.58,218.5,7.07142214]
[1736052519192,2.2882,218.57,218.5,9.36022214]
[1736052520193,2.2882,218.57,218.52,7.07142214]
[1736052520693,2.2882,218.56,218.52,7.07142214]
[1736052521588,2.2884,218.55,218.5,7.07142214]
[1736052526900,2.2884,218.55,218.5,9.36022214]
[1736052528900,7.07142214,218.57,218.5,9.36022214]
[1736052529200,7.07142214,218.6,218.52,9.36002214]
[1736052530602,2.2881,218.58,218.52,9.36002214]
[1736052531002,9.35952214,218.58,218.52,9.36002214]
[1736052532303,2.2881,218.57,218.52,9.36002214]
[1736052532603,2.2881,218.57,218.52,7.07142214]
[1736052536494,2.2881,218.57,218.51,2.2887]
[1736052538406,2.2882,218.56,218.51,2.2887]
[1736052538607,7.07142214,218.56,218.49,2.2889]
[1736052539004,2.2884,218.54,218.49,2.2889]
[1736052546010,2.2884,218.54,218.5,7.07142214]
[1736052547207,2.2884,218.54,218.5,9.36022214]
[1736052547709,7.07142214,218.58,218.5,9.36022214]
[1736052547911,2.2883,218.56,218.5,9.36022214]
[1736052548112,7.07142214,218.58,218.5,9.36022214]
[1736052548809,2.2883,218.56,218.51,2.2887]
[1736052549109,7.07142214,218.59,218.52,7.07142214]
[1736052549515,26.48462279,218.63,218.52,7.07142214]
[1736052549709,7.07142214,218.61,218.54,7.07142214]
[1736052550512,2.2878,218.6,218.54,7.07142214]
[1736052551907,9.35932214,218.59,218.54,2.2884]
[1736052552515,7.07142214,218.59,218.53,2.2885]
[1736052552716,7.07142214,218.59,218.52,8.49412214]
[1736052552918,7.07142214,218.57,218.52,1.4227]
[1736052553418,2.2884,218.55,218.52,1.4227]
[1736052553618,7.07142214,218.57,218.52,1.4227]
[1736052554420,2.2882,218.56,218.52,1.4227]
[1736052556021,7.07142214,218.57,218.52,1.4227]
[1736052556323,9.35952214,218.57,218.52,1.4227]
[1736052558220,7.07142214,218.57,218.52,1.4227]
[1736052558523,7.07142214,218.57,218.53,2.2885]
[1736052559919,7.07142214,218.57,218.52,1.4227]
[1736052560724,9.35952214,218.57,218.52,1.4227]
[1736052560922,9.35952214,218.57,218.52,3.7113]
[1736052565926,2.2881,218.57,218.52,10.78272214]
[1736052567929,7.07142214,218.58,218.52,10.78272214]
[1736052568131,9.35942214,218.58,218.52,10.78272214]
[1736052569727,9.35942214,218.58,218.52,3.7113]
[1736052571435,7.07142214,218.56,218.52,3.7113]
[1736052573838,2.288,218.58,218.52,3.7113]
[1736052574136,7.07142214,218.57,218.52,3.7113]
[1736052574335,2.288,218.58,218.53,2.2885]
[1736052574635,9.35942214,218.58,218.53,2.2885]
[1736052590450,2.288,218.58,218.53,2.2885]
[1736052590651,9.35942214,218.58,218.54,2.2884]
[1736052594554,7.07142214,218.58,218.54,2.2884]
[1736052594949,7.07142214,218.58,218.53,2.2884]
[1736052595147,7.07142214,218.58,218.5,7.07142214]
[1736052596058,7.07142214,218.58,218.53,2.2885]
[1736052596958,9.35942214,218.58,218.53,2.2885]
[1736052599857,7.07142214,218.56,218.53,2.2885]
[1736052607162,9.35942214,218.58,218.53,2.2885]
[1736052610163,2.288,218.58,218.53,2.2885]
[1736052610360,9.35942214,218.58,218.53,2.2885]
[1736052612471,7.07142214,218.58,218.54,2.2884]
[1736052614168,26.48462279,218.63,218.53,7.07142214]
[1736052614368,7.07142214,218.61,218.57,2.2881]
[1736052618675,7.07142214,218.61,218.58,2.288]
[1736052620176,28.77212279,218.63,218.58,2.288]
[1736052620476,7.07142214,218.62,218.59,2.2879]
[1736052622875,7.07142214,218.62,218.57,2.288]
[1736052623079,7.07142214,218.6,218.57,2.288]
[1736052624382,26.48462279,218.63,218.57,2.288]
[1736052624583,7.07142214,218.6,218.57,2.288]
[1736052633178,9.35942214,218.58,218.51,2.2887]
[1736052633378,7.07142214,218.56,218.51,2.56]
[1736052634486,7.07142214,218.56,218.53,2.2885]
[1736052642489,9.35942214,218.58,218.53,2.2885]
[1736052642886,2.2885,218.53,218.47,25.28187161]
[1736052643085,7.07142214,218.5,218.47,25.28187161]
[1736052643484,7.07142214,218.52,218.47,25.28187161]
[1736052643884,7.07142214,218.52,218.45,9.63142214]
[1736052644389,2.2885,218.53,218.45,9.63142214]
[1736052644390,7.07142214,218.5,218.46,2.2892]
[1736052646791,7.07142214,218.5,218.45,2.56]
[1736052646990,7.07142214,218.5,218.44,2.2894]
[1736052648697,7.07142214,218.5,218.43,7.07142214]
[1736052648894,7.07142214,218.5,218.45,2.2894]
[1736052650390,7.07142214,218.53,218.45,7.07142214]
[1736052650591,7.07142214,218.53,218.48,2.289]
[1736052650890,7.07142214,218.53,218.47,7.07142214]
[1736052652392,7.07142214,218.53,218.49,2.289]
[1736052653791,2.2884,218.54,218.49,2.289]
[1736052659199,2.2879,218.6,218.53,7.07142214]
[1736052659396,7.07142214,218.6,218.52,7.07142214]
[1736052659998,7.07142214,218.58,218.52,7.07142214]
[1736052660397,9.35942214,218.58,218.52,9.35992214]
[1736052660899,2.288,218.58,218.52,9.35992214]
[1736052661097,9.35962214,218.56,218.5,2.2888]
[1736052661403,7.07142214,218.54,218.5,2.2888]
[1736052662902,7.07142214,218.54,218.48,7.07142214]
[1736052663100,7.07142214,218.54,218.48,9.36042214]
[1736052663302,7.07142214,218.54,218.48,7.07142214]
[1736052663498,2.2883,218.55,218.49,2.2889]
[1736052665700,2.2883,218.55,218.5,2.2888]
[1736052678612,7.07142214,218.54,218.5,2.2888]
[1736052679806,9.35972214,218.55,218.5,2.2888]
[1736052691415,2.2881,218.58,218.5,7.07142214]
[1736052691616,9.35952214,218.58,218.5,7.07142214]
[1736052692424,9.35952214,218.58,218.52,2.2886]
[1736052693122,9.35952214,218.58,218.53,2.2885]
[1736052694117,9.35952214,218.58,218.52,7.07142214]
[1736052694118,7.07142214,218.58,218.52,7.07142214]
[1736052695429,7.07142214,218.58,218.55,2.2883]
[1736052695923,2.2878,218.6,218.55,2.2883]
[1736052696127,7.07142214,218.6,218.55,2.2883]
[1736052697126,9.35922214,218.6,218.55,2.2883]
[1736052697828,7.07142214,218.6,218.56,2.2882]
[1736052709240,26.48613324,218.62,218.56,2.2882]
[1736052709432,7.07142214,218.59,218.56,2.2882]
[1736052710137,7.07142214,218.59,218.52,7.07142214]
[1736052710336,7.07142214,218.57,218.55,2.2883]
[1736052713141,7.07142214,218.57,218.52,7.07142214]
[1736052713338,7.07142214,218.57,218.53,2.2885]
[1736052714039,7.07142214,218.57,218.52,7.07142214]
[1736052714237,7.07142214,218.57,218.51,7.07142214]
[1736052715137,7.07142214,218.57,218.54,2.2884]
[1736052715338,2.2879,218.59,218.54,2.2884]
[1736052715539,7.07142214,218.57,218.54,2.2884]
[1736052725645,2.2879,218.59,218.54,2.2884]
[1736052725833,7.07142214,218.58,218.54,2.2884]
[1736052727939,2.2879,218.59,218.54,2.2884]
[1736052728143,9.35932214,218.59,218.54,2.2884]
[1736052728539,2.2879,218.59,218.54,2.2884]
[1736052728845,7.07142214,218.58,218.54,2.2884]
[1736052729444,7.07142214,218.58,218.51,9.63142214]
[1736052730538,7.07142214,218.58,218.54,2.2884]
[1736052735753,7.07142214,218.58,218.52,4.8485]
[1736052737656,7.07142214,218.56,218.52,2.56]
[1736052737849,26.48613324,218.62,218.52,2.56]
[1736052738045,7.07142214,218.56,218.52,2.56]
[1736052742258,7.07142214,218.56,218.51,2.2887]
[1736052742454,7.07142214,218.56,218.52,2.2886]
[1736052744259,2.2881,218.57,218.52,2.2886]
[1736052744453,7.07142214,218.56,218.52,2.2886]
[1736052748763,7.07142214,218.58,218.51,7.07142214]
[1736052749058,9.35942214,218.58,218.52,2.2886]
[1736052759065,9.35942214,218.58,218.51,7.07142214]
[1736052759265,9.35942214,218.58,218.53,2.2885]
[1736052762473,2.288,218.58,218.53,2.2885]
[1736052762665,9.35942214,218.58,218.53,2.2885]
[1736052779986,7.07142214,218.56,218.49,15.93189004]
[1736052780984,7.07142214,218.56,218.49,9.61142214]
[1736052781583,7.07142214,218.56,218.51,2.2887]
[1736052784284,2.2882,218.57,218.51,2.2887]
[1736052784483,7.07142214,218.55,218.51,2.2887]
[1736052787789,9.35962214,218.57,218.49,9.61142214]
[1736052788089,7.07142214,218.57,218.49,9.61142214]
[1736052788992,2.2881,218.58,218.52,2.2886]
[1736052791193,2.2881,218.58,218.53,2.2885]
[1736052791394,2.2881,218.58,218.5,7.07142214]
[1736052791590,7.07142214,218.57,218.5,7.07142214]
[1736052791790,9.35952214,218.57,218.51,2.2887]
[1736052798291,7.07142214,218.57,218.51,2.2887]
[1736052798495,7.07142214,218.53,218.47,29.20447161]
[1736052799190,7.07142214,218.53,218.49,2.2889]
[1736052802197,11.89962214,218.57,218.51,2.2887]
[1736052802396,4.8282,218.57,218.51,2.2887]
[1736052802596,9.35962214,218.57,218.51,2.2887]
[1736052806092,2.2882,218.57,218.5,7.07142214]
[1736052806299,9.35962214,218.57,218.52,2.2886]
[1736052806799,2.2882,218.57,218.52,2.2886]
[1736052806996,9.35962214,218.57,218.52,2.2886]
[1736052812902,7.07142214,218.55,218.52,2.2886]
[1736052814201,7.07142214,218.55,218.5,7.07142214]
[1736052814500,7.07142214,218.55,218.51,2.2887]
[1736052820002,9.35992214,218.53,218.46,6.3204679]
[1736052820202,7.07142214,218.53,218.46,13.39189004]
[1736052820502,7.07142214,218.53,218.46,7.07142214]
[1736052820901,5.97348605,218.6,218.46,7.07142214]
[1736052821304,7.07142214,218.53,218.46,7.07142214]
[1736052821500,7.07142214,218.53,218.49,2.289]
[1736052828109,2.2884,218.54,218.49,2.289]
[1736052828306,9.35982214,218.54,218.49,2.289]
[1736052829011,2.2884,218.54,218.49,2.289]
[1736052829213,9.35982214,218.54,218.49,2.289]
[1736052829610,2.2884,218.54,218.49,2.289]
[1736052829908,9.35982214,218.54,218.49,2.289]
[1736052835710,2.2884,218.54,218.49,2.289]
[1736052836210,9.35982214,218.54,218.49,2.289]
[1736052840504,2.2884,218.54,218.49,2.289]
[1736052840902,9.35982214,218.54,218.49,2.289]
[1736052847613,9.35982214,218.54,218.48,2.2891]
[1736052867427,2.2887,218.52,218.46,2.2892]
[1736052867728,2.2887,218.52,218.46,2.54]
[1736052868133,7.07142214,218.54,218.46,2.54]
[1736052868436,9.35992214,218.54,218.47,2.2891]
[1736052869135,9.35992214,218.54,218.46,2.54]
[1736052869335,9.35992214,218.54,218.48,2.2891]
[1736052871043,2.2885,218.54,218.48,2.2891]
[1736052871232,7.07142214,218.53,218.48,2.2891]
[1736052882636,9.36002214,218.53,218.48,2.2891]
[1736052884753,7.07142214,218.53,218.48,2.2891]
[1736052885446,7.07142214,218.53,218.46,2.54]
[1736052885643,2.2888,218.51,218.46,4.8292]
[1736052886346,7.07142214,218.51,218.46,2.54]
[1736052886547,7.07142214,218.49,218.44,27.57127161]
[1736052886751,7.07142214,218.49,218.44,2.2894]
[1736052889346,7.07142214,218.49,218.42,1.4346]
[1736052889545,7.07142214,218.47,218.42,7.07142214]
[1736052889754,7.07142214,218.47,218.41,8.8604679]
[1736052890456,9.36062214,218.47,218.41,11.1502679]
[1736052890659,9.36062214,218.47,218.41,4.8298]
[1736052891155,9.36062214,218.47,218.41,2.2898]
[1736052896957,7.07142214,218.47,218.4,7.07142214]
[1736052897258,9.36082214,218.45,218.39,2.2899]
[1736052899759,2.7424,218.5,218.36,1.4827]